[Event "*** Titled Tuesday 3|2 Blitz"]
[Site "Chess.com"]
[Date "2015.08.04"]
[Round "2"]
[White "FairChess_on_YouTube"]
[Black "Keaton87"]
[Result "1-0"]
[WhiteElo "2756"]
[BlackElo "2436"]
[TimeControl "180+2"]
[EndTime "11:48:58 PDT"]
[Termination "FairChess_on_YouTube won by resignation"]

1. d4 {[%clk 0:03:01.9]} 1... d5 {[%clk 0:03:00.4]} 2. c4 {[%clk 0:03:00.5]}
2... e6 {[%clk 0:03:01.5]} 3. Nc3 {[%clk 0:03:00.3]} 3... Be7 {[%clk 0:03:02.6]}
4. Bf4 {[%clk 0:02:57.5]} 4... Nf6 {[%clk 0:03:00.5]} 5. Nf3 {[%clk 0:02:57.9]}
5... O-O {[%clk 0:03:00.4]} 6. e3 {[%clk 0:02:58.5]} 6... b6 {[%clk 0:02:59.8]}
7. cxd5 {[%clk 0:02:50.8]} 7... Nxd5 {[%clk 0:02:59.5]} 8. Bg3 {[%clk
0:02:47.9]} 8... Bb7 {[%clk 0:02:53.6]} 9. Bd3 {[%clk 0:02:47.8]} 9... c5 {[%clk
0:02:53.2]} 10. O-O {[%clk 0:02:47.7]} 10... cxd4 {[%clk 0:02:52]} 11. exd4
{[%clk 0:02:48.8]} 11... Nc6 {[%clk 0:02:48.1]} 12. Re1 {[%clk 0:02:49]} 12...
Rc8 {[%clk 0:02:43.3]} 13. Nxd5 {[%clk 0:02:47]} 13... Qxd5 {[%clk 0:02:39.9]}
14. Be4 {[%clk 0:02:47.8]} 14... Qd7 {[%clk 0:02:38.7]} 15. d5 {[%clk
0:02:14.3]} 15... exd5 {[%clk 0:02:32.2]} 16. Qxd5 {[%clk 0:02:15.1]} 16... Qxd5
{[%clk 0:02:27.6]} 17. Bxd5 {[%clk 0:02:16.3]} 17... Bf6 {[%clk 0:02:28.8]} 18.
Ne5 {[%clk 0:02:14.2]} 18... Bxe5 {[%clk 0:02:14.1]} 19. Bxe5 {[%clk 0:02:14.5]}
19... Nxe5 {[%clk 0:02:13.1]} 20. Bxb7 {[%clk 0:02:14.5]} 20... Rc7 {[%clk
0:02:10.4]} 21. Ba6 {[%clk 0:02:13.1]} 21... Ng4 {[%clk 0:01:44.2]} 22. h3
{[%clk 0:02:07]} 22... Nf6 {[%clk 0:01:44.1]} 23. Rad1 {[%clk 0:02:08.5]} 23...
g6 {[%clk 0:01:42.7]} 24. Re2 {[%clk 0:02:07.9]} 24... Kg7 {[%clk 0:01:43.7]}
25. g3 {[%clk 0:02:03.2]} 25... h5 {[%clk 0:01:37.3]} 26. h4 {[%clk 0:02:02.3]}
26... Rb8 {[%clk 0:01:33.2]} 27. a4 {[%clk 0:01:59.4]} 27... Ng8 {[%clk
0:01:30.8]} 28. Kg2 {[%clk 0:01:59.4]} 28... Ne7 {[%clk 0:01:31.8]} 29. Red2
{[%clk 0:01:58.4]} 29... Nf5 {[%clk 0:01:17.2]} 30. Rd7 {[%clk 0:01:44.6]} 30...
Rc2 {[%clk 0:01:17.9]} 31. Bd3 {[%clk 0:01:34.9]} 31... Ne3+ {[%clk 0:01:07.1]}
32. Kf3 {[%clk 0:01:34.3]} 32... Nxd1 {[%clk 0:01:03.7]} 33. Bxc2 {[%clk
0:01:35.2]} 33... Nxb2 {[%clk 0:01:04]} 34. Bb3 {[%clk 0:01:34.9]} 34... Rf8
{[%clk 0:01:02.6]} 35. Rd2 {[%clk 0:01:32.6]} 35... Nxa4 {[%clk 0:00:53.5]} 36.
Bxa4 {[%clk 0:01:34.1]} 36... Rc8 {[%clk 0:00:48.5]} 37. Rd7 {[%clk 0:01:26]}
37... a5 {[%clk 0:00:49.4]} 38. Rb7 {[%clk 0:01:22.4]} 38... Rc4 {[%clk
0:00:46.7]} 39. Be8 {[%clk 0:01:21]} 1-0

[Event "*** Titled Tuesday 3|2 Blitz"]
[Site "Chess.com"]
[Date "2015.08.04"]
[Round "2"]
[White "proxy6"]
[Black "Lying-Ted"]
[Result "0-1"]
[WhiteElo "1899"]
[BlackElo "2015"]
[TimeControl "180+2"]
[EndTime "11:49:03 PDT"]
[Termination "Lying-Ted won by resignation"]

1. e4 {[%clk 0:03:01.9]} 1... Nf6 {[%clk 0:02:59.5]} 2. e5 {[%clk 0:03:02.6]}
2... Nd5 {[%clk 0:02:59.6]} 3. d4 {[%clk 0:03:02.3]} 3... d6 {[%clk 0:03:00.9]}
4. c4 {[%clk 0:03:03]} 4... Nb6 {[%clk 0:03:00.7]} 5. exd6 {[%clk 0:03:03.5]}
5... cxd6 {[%clk 0:03:01.8]} 6. Nc3 {[%clk 0:03:03.1]} 6... g6 {[%clk
0:03:02.8]} 7. Be3 {[%clk 0:03:03.3]} 7... Bg7 {[%clk 0:03:04]} 8. Rc1 {[%clk
0:03:03.5]} 8... O-O {[%clk 0:03:05.4]} 9. Bd3 {[%clk 0:03:03.6]} 9... Nc6
{[%clk 0:03:02.7]} 10. Nge2 {[%clk 0:03:02.6]} 10... e5 {[%clk 0:03:00.7]} 11.
d5 {[%clk 0:02:59.8]} 11... Nb4 {[%clk 0:02:58.9]} 12. b3 {[%clk 0:02:58.2]}
12... f5 {[%clk 0:02:57.2]} 13. f4 {[%clk 0:02:46.7]} 13... Nd7 {[%clk
0:02:25.7]} 14. O-O {[%clk 0:02:40.1]} 14... b6 {[%clk 0:02:22.3]} 15. a3 {[%clk
0:02:37.1]} 15... Nxd3 {[%clk 0:02:20.1]} 16. Qxd3 {[%clk 0:02:39]} 16... e4
{[%clk 0:02:12.8]} 17. Qb1 {[%clk 0:02:29.7]} 17... Nc5 {[%clk 0:02:14.7]} 18.
Bxc5 {[%clk 0:02:22.5]} 18... bxc5 {[%clk 0:02:16.6]} 19. b4 {[%clk 0:02:20.4]}
19... Rb8 {[%clk 0:02:10]} 20. Rc2 {[%clk 0:02:16.6]} 20... cxb4 {[%clk
0:02:05.1]} 21. axb4 {[%clk 0:02:17]} 21... Qb6+ {[%clk 0:02:06.2]} 22. Kh1
{[%clk 0:02:14.9]} 22... Qxb4 {[%clk 0:02:07]} 23. Qxb4 {[%clk 0:02:15.6]} 23...
Rxb4 {[%clk 0:02:06.6]} 24. Nb5 {[%clk 0:02:16.6]} 24... Rd8 {[%clk 0:01:55.2]}
25. Nxa7 {[%clk 0:02:15.1]} 25... Bd7 {[%clk 0:01:50.3]} 26. Rfc1 {[%clk
0:02:01.7]} 26... Ra8 {[%clk 0:01:47.8]} 27. Nc6 {[%clk 0:02:01.5]} 27... Bxc6
{[%clk 0:01:44.3]} 28. dxc6 {[%clk 0:02:03.4]} 28... Rc8 {[%clk 0:01:45.4]} 29.
c5 {[%clk 0:02:02.8]} 29... d5 {[%clk 0:01:45.3]} 30. Nc3 {[%clk 0:01:55.8]}
30... Bxc3 {[%clk 0:01:39.6]} 31. Rxc3 {[%clk 0:01:57.7]} 31... Rxc6 {[%clk
0:01:40.8]} 32. Kg1 {[%clk 0:01:56.6]} 32... Kf7 {[%clk 0:01:39.6]} 33. Ra3
{[%clk 0:01:54.4]} 33... d4 {[%clk 0:01:34.5]} 34. Ra7+ {[%clk 0:01:54]} 34...
Ke6 {[%clk 0:01:35.2]} 35. Rxh7 {[%clk 0:01:54.2]} 35... Kd5 {[%clk 0:01:34]}
36. Rd7+ {[%clk 0:01:52.4]} 36... Ke6 {[%clk 0:01:34.9]} 37. Rg7 {[%clk
0:01:52.9]} 37... Kf6 {[%clk 0:01:34.9]} 38. Rd7 {[%clk 0:01:53.6]} 38... Rb5
{[%clk 0:01:26.1]} 39. Rd5 {[%clk 0:01:53.8]} 39... d3 {[%clk 0:01:25]} 40. Kf2
{[%clk 0:01:47.8]} 40... Rb2+ {[%clk 0:01:24.6]} 41. Kf1 {[%clk 0:01:46.8]}
41... Rc2 {[%clk 0:01:07.3]} 42. Ra1 {[%clk 0:01:41]} 42... R2xc5 {[%clk
0:01:06.9]} 43. Rxc5 {[%clk 0:01:39.7]} 43... Rxc5 {[%clk 0:01:07.1]} 44. Rd1
{[%clk 0:01:39.4]} 44... Rc2 {[%clk 0:01:07.3]} 45. h3 {[%clk 0:01:36.8]} 45...
Ke6 {[%clk 0:01:07.9]} 46. g3 {[%clk 0:01:33.9]} 46... Kd5 {[%clk 0:01:08.7]}
47. h4 {[%clk 0:01:34.7]} 47... Kd4 {[%clk 0:01:09.3]} 48. Kg1 {[%clk
0:01:28.3]} 48... Ke3 {[%clk 0:01:09]} 49. Kf1 {[%clk 0:01:28.6]} 49... Kf3
{[%clk 0:01:09.1]} 0-1

[Event "*** Titled Tuesday 3|2 Blitz"]
[Site "Chess.com"]
[Date "2015.08.04"]
[Round "2"]
[White "NMJeevanK"]
[Black "Haridaskesavan"]
[Result "1-0"]
[WhiteElo "2029"]
[BlackElo "2028"]
[TimeControl "180+2"]
[EndTime "11:49:15 PDT"]
[Termination "NMJeevanK won on time"]

1. e4 {[%clk 0:03:01.9]} 1... e5 {[%clk 0:03:00.7]} 2. Nf3 {[%clk 0:03:03.2]}
2... Nc6 {[%clk 0:03:01.6]} 3. Bb5 {[%clk 0:03:04]} 3... a6 {[%clk 0:03:02.5]}
4. Ba4 {[%clk 0:03:05]} 4... d6 {[%clk 0:03:03.7]} 5. c3 {[%clk 0:03:04.4]} 5...
Ne7 {[%clk 0:03:04.4]} 6. h3 {[%clk 0:03:05.2]} 6... g6 {[%clk 0:03:04.2]} 7.
O-O {[%clk 0:03:05.6]} 7... Bg7 {[%clk 0:03:05.1]} 8. d4 {[%clk 0:03:05.9]} 8...
O-O {[%clk 0:03:04.9]} 9. Be3 {[%clk 0:03:03.6]} 9... h6 {[%clk 0:03:04.3]} 10.
Re1 {[%clk 0:03:01.7]} 10... f5 {[%clk 0:03:03]} 11. exf5 {[%clk 0:03:01.5]}
11... Nxf5 {[%clk 0:03:03.5]} 12. Bc2 {[%clk 0:02:56]} 12... Nxe3 {[%clk
0:03:03.6]} 13. fxe3 {[%clk 0:02:56.5]} 13... exd4 {[%clk 0:03:02.1]} 14. Bxg6
{[%clk 0:02:46.6]} 14... dxe3 {[%clk 0:02:43.5]} 15. Rxe3 {[%clk 0:02:43.7]}
15... Qf6 {[%clk 0:02:41.2]} 16. Bc2 {[%clk 0:02:20.6]} 16... Ne5 {[%clk
0:02:26.2]} 17. Nbd2 {[%clk 0:02:20.1]} 17... Bd7 {[%clk 0:02:09.9]} 18. Nxe5
{[%clk 0:01:49.9]} 18... Qf2+ {[%clk 0:01:42.4]} 19. Kh1 {[%clk 0:01:50.3]}
19... Bxe5 {[%clk 0:01:35.5]} 20. Rf3 {[%clk 0:01:37.5]} 20... Rxf3 {[%clk
0:01:26.8]} 21. Nxf3 {[%clk 0:01:37]} 21... Rf8 {[%clk 0:00:24]} 22. Nxe5 {[%clk
0:01:29.3]} 22... Bxh3 {[%clk 0:00:19.3]} 23. Qd5+ {[%clk 0:01:10.8]} 23... Kg7
{[%clk 0:00:17.4]} 24. gxh3 {[%clk 0:01:10]} 24... Qxc2 {[%clk 0:00:13.9]} 25.
Rg1+ {[%clk 0:01:07]} 25... Kh7 {[%clk 0:00:12.6]} 26. Qxb7 {[%clk 0:00:42.9]}
1-0

[Event "*** Titled Tuesday 3|2 Blitz"]
[Site "Chess.com"]
[Date "2015.08.04"]
[Round "2"]
[White "Janosik"]
[Black "Keranke"]
[Result "1-0"]
[WhiteElo "2548"]
[BlackElo "2543"]
[TimeControl "180+2"]
[EndTime "11:50:15 PDT"]
[Termination "Janosik won by resignation"]

1. Nf3 {[%clk 0:03:01.9]} 1... d5 {[%clk 0:03:00.3]} 2. d4 {[%clk 0:03:02.8]}
2... Nf6 {[%clk 0:03:01.4]} 3. c4 {[%clk 0:03:04.7]} 3... c6 {[%clk 0:03:02.8]}
4. e3 {[%clk 0:03:04.4]} 4... Bf5 {[%clk 0:03:03.1]} 5. Nc3 {[%clk 0:03:04.6]}
5... e6 {[%clk 0:03:04.4]} 6. Nh4 {[%clk 0:03:05.6]} 6... Bg6 {[%clk 0:03:05.1]}
7. Nxg6 {[%clk 0:03:06.2]} 7... hxg6 {[%clk 0:03:07]} 8. Bd3 {[%clk 0:03:07.7]}
8... Bd6 {[%clk 0:03:06.9]} 9. h3 {[%clk 0:03:09.1]} 9... Nbd7 {[%clk
0:03:08.2]} 10. O-O {[%clk 0:03:10.3]} 10... Qe7 {[%clk 0:02:53.7]} 11. Bd2
{[%clk 0:03:03.8]} 11... dxc4 {[%clk 0:02:53]} 12. Bxc4 {[%clk 0:03:05.2]} 12...
e5 {[%clk 0:02:54.7]} 13. Qc2 {[%clk 0:03:03.2]} 13... e4 {[%clk 0:02:44.8]} 14.
f3 {[%clk 0:02:39.7]} 14... exf3 {[%clk 0:02:36.1]} 15. Rxf3 {[%clk 0:02:41.6]}
15... g5 {[%clk 0:02:32.3]} 16. Qf5 {[%clk 0:02:17.8]} 16... Rh5 {[%clk
0:02:00.6]} 17. g4 {[%clk 0:02:16.3]} 17... g6 {[%clk 0:02:01.3]} 18. Qd3 {[%clk
0:02:10.2]} 18... Rh4 {[%clk 0:01:53]} 19. Be1 {[%clk 0:01:57.5]} 19... Rh7
{[%clk 0:01:52.7]} 20. e4 {[%clk 0:01:45.7]} 20... O-O-O {[%clk 0:01:49.9]} 21.
Qf1 {[%clk 0:01:08]} 21... Bf4 {[%clk 0:01:07.8]} 22. e5 {[%clk 0:00:59.9]}
22... Ne8 {[%clk 0:01:03.8]} 23. Ne4 {[%clk 0:00:46.7]} 23... f5 {[%clk
0:00:54.2]} 24. Nf2 {[%clk 0:00:37.7]} 24... Nc7 {[%clk 0:00:47.3]} 25. Rd1
{[%clk 0:00:34.8]} 25... fxg4 {[%clk 0:00:41.4]} 26. Nxg4 {[%clk 0:00:26.3]}
26... Nxe5 {[%clk 0:00:36.2]} 27. Rxf4 {[%clk 0:00:15.6]} 27... Nxc4 {[%clk
0:00:36.8]} 28. Rf2 {[%clk 0:00:16.2]} 28... Ne3 {[%clk 0:00:34.8]} 29. Qe2
{[%clk 0:00:16.3]} 29... Ncd5 {[%clk 0:00:32.2]} 30. Nxe3 {[%clk 0:00:16.4]}
30... Qxe3 {[%clk 0:00:33.9]} 31. Qxe3 {[%clk 0:00:17.4]} 31... Nxe3 {[%clk
0:00:35.8]} 32. Rd3 {[%clk 0:00:19.2]} 32... Rxh3 {[%clk 0:00:34.2]} 33. Re2
{[%clk 0:00:20.2]} 33... Re8 {[%clk 0:00:27.6]} 34. Bf2 {[%clk 0:00:19.7]} 34...
Reh8 {[%clk 0:00:24.1]} 35. Rdxe3 {[%clk 0:00:20.5]} 35... Rh1+ {[%clk 0:00:26]}
36. Kg2 {[%clk 0:00:22]} 36... R8h2+ {[%clk 0:00:27.5]} 37. Kg3 {[%clk
0:00:23.4]} 37... Kc7 {[%clk 0:00:27.7]} 38. Kg4 {[%clk 0:00:23]} 38... Rg2+
{[%clk 0:00:28]} 39. Bg3+ {[%clk 0:00:24.6]} 39... Rxg3+ {[%clk 0:00:28.6]} 40.
Rxg3 {[%clk 0:00:26.5]} 40... Rd1 {[%clk 0:00:29.1]} 41. Kxg5 {[%clk 0:00:27.6]}
41... Rd3 {[%clk 0:00:30.3]} 42. Rxd3 {[%clk 0:00:28]} 1-0

[Event "*** Titled Tuesday 3|2 Blitz"]
[Site "Chess.com"]
[Date "2015.08.04"]
[Round "2"]
[White "BIG_Pirate"]
[Black "chessking2151"]
[Result "1-0"]
[WhiteElo "2267"]
[BlackElo "2001"]
[TimeControl "180+2"]
[EndTime "11:50:18 PDT"]
[Termination "BIG_Pirate won by resignation"]

1. Nf3 {[%clk 0:03:01.9]} 1... Nf6 {[%clk 0:02:59]} 2. c4 {[%clk 0:02:57.2]}
2... c5 {[%clk 0:02:59.8]} 3. Nc3 {[%clk 0:02:58.4]} 3... Nc6 {[%clk 0:03:00.7]}
4. g3 {[%clk 0:02:59.7]} 4... g6 {[%clk 0:03:01.5]} 5. Bg2 {[%clk 0:03:01]} 5...
Bg7 {[%clk 0:03:03.1]} 6. O-O {[%clk 0:03:02.3]} 6... O-O {[%clk 0:03:04.3]} 7.
a3 {[%clk 0:03:03.8]} 7... d6 {[%clk 0:03:05.5]} 8. Rb1 {[%clk 0:03:04.9]} 8...
a5 {[%clk 0:03:00.3]} 9. d3 {[%clk 0:03:05.3]} 9... Bg4 {[%clk 0:02:56.7]} 10.
Ne1 {[%clk 0:03:05.3]} 10... Qc8 {[%clk 0:02:54.5]} 11. Nc2 {[%clk 0:03:01.5]}
11... Nd7 {[%clk 0:02:42.6]} 12. Re1 {[%clk 0:02:59.3]} 12... Ra6 {[%clk
0:02:23.2]} 13. Bd2 {[%clk 0:02:53.6]} 13... Nd4 {[%clk 0:02:13.8]} 14. Ne3
{[%clk 0:02:49.7]} 14... Be6 {[%clk 0:02:11]} 15. Ncd5 {[%clk 0:02:42.9]} 15...
Re8 {[%clk 0:02:05.9]} 16. b4 {[%clk 0:02:38.4]} 16... Bxd5 {[%clk 0:02:04.9]}
17. Nxd5 {[%clk 0:02:36.9]} 17... e6 {[%clk 0:02:01.2]} 18. Nc3 {[%clk
0:02:20.5]} 18... axb4 {[%clk 0:01:58.1]} 19. axb4 {[%clk 0:02:21.5]} 19... Ra3
{[%clk 0:01:34.3]} 20. Ne4 {[%clk 0:02:15.9]} 20... Qc7 {[%clk 0:01:31]} 21.
bxc5 {[%clk 0:02:03.9]} 21... dxc5 {[%clk 0:01:29.1]} 22. Nc3 {[%clk 0:01:59.7]}
22... Rxc3 {[%clk 0:00:31]} 23. Bxc3 {[%clk 0:01:40]} 23... Nxe2+ {[%clk
0:00:31.4]} 24. Rxe2 {[%clk 0:01:40.7]} 24... Bxc3 {[%clk 0:00:32.4]} 25. Rxb7
{[%clk 0:01:41.6]} 25... Qd6 {[%clk 0:00:33]} 26. Qa4 {[%clk 0:01:11]} 26... Rd8
{[%clk 0:00:26]} 27. Re3 {[%clk 0:00:58.8]} 27... Bd4 {[%clk 0:00:17.1]} 28. Re2
{[%clk 0:00:39.6]} 28... Ne5 {[%clk 0:00:15.4]} 29. Qc2 {[%clk 0:00:25.7]} 29...
Ba1 {[%clk 0:00:13]} 30. Re1 {[%clk 0:00:21.4]} 30... Bd4 {[%clk 0:00:13]} 31.
Reb1 {[%clk 0:00:21.2]} 31... Nxd3 {[%clk 0:00:12.8]} 32. Rf1 {[%clk 0:00:18.1]}
32... Ne5 {[%clk 0:00:13.4]} 33. h3 {[%clk 0:00:14.7]} 33... Rd7 {[%clk
0:00:14.6]} 34. Rxd7 {[%clk 0:00:15.1]} 34... Qxd7 {[%clk 0:00:16.5]} 35. Kh2
{[%clk 0:00:16.1]} 35... f6 {[%clk 0:00:16.7]} 36. f4 {[%clk 0:00:15.4]} 36...
Nf7 {[%clk 0:00:17.9]} 37. Qe4 {[%clk 0:00:15.6]} 37... Qe7 {[%clk 0:00:18.8]}
38. Rb1 {[%clk 0:00:15.4]} 38... Kg7 {[%clk 0:00:19.9]} 39. Rb7 {[%clk
0:00:15.8]} 39... Qf8 {[%clk 0:00:21.2]} 40. Qxe6 {[%clk 0:00:16.7]} 40... Kg8
{[%clk 0:00:21.3]} 41. Bd5 {[%clk 0:00:17.2]} 41... h6 {[%clk 0:00:21.1]} 42.
Rxf7 {[%clk 0:00:17.3]} 1-0

[Event "*** Titled Tuesday 3|2 Blitz"]
[Site "Chess.com"]
[Date "2015.08.04"]
[Round "2"]
[White "lukas_111111"]
[Black "MFBerna"]
[Result "0-1"]
[WhiteElo "2212"]
[BlackElo "2093"]
[TimeControl "180+2"]
[EndTime "11:50:18 PDT"]
[Termination "MFBerna won by resignation"]

1. d4 {[%clk 0:03:01.9]} 1... d5 {[%clk 0:02:47.1]} 2. c4 {[%clk 0:03:02]} 2...
e6 {[%clk 0:02:48.3]} 3. Nf3 {[%clk 0:03:02.1]} 3... Be7 {[%clk 0:02:49.3]} 4.
Nc3 {[%clk 0:03:02.3]} 4... Nf6 {[%clk 0:02:50.6]} 5. Bf4 {[%clk 0:03:02.4]}
5... O-O {[%clk 0:02:51.4]} 6. e3 {[%clk 0:03:03.4]} 6... Nbd7 {[%clk
0:02:46.9]} 7. c5 {[%clk 0:03:04]} 7... Nh5 {[%clk 0:02:47.2]} 8. Bd3 {[%clk
0:03:00]} 8... Nxf4 {[%clk 0:02:47.4]} 9. exf4 {[%clk 0:02:59.8]} 9... b6 {[%clk
0:02:48.8]} 10. b4 {[%clk 0:03:00.4]} 10... a5 {[%clk 0:02:49.5]} 11. a3 {[%clk
0:03:01.5]} 11... c6 {[%clk 0:02:46]} 12. O-O {[%clk 0:03:01.5]} 12... Ba6
{[%clk 0:02:41.2]} 13. g3 {[%clk 0:02:59.5]} 13... Bxd3 {[%clk 0:02:41.8]} 14.
Qxd3 {[%clk 0:02:59.6]} 14... g6 {[%clk 0:02:35.2]} 15. Ne5 {[%clk 0:02:49.2]}
15... Nxe5 {[%clk 0:02:35.8]} 16. fxe5 {[%clk 0:02:48.1]} 16... Qc7 {[%clk
0:02:27.5]} 17. Na4 {[%clk 0:02:24.2]} 17... b5 {[%clk 0:02:14.6]} 18. Nc3
{[%clk 0:02:12.3]} 18... Ra7 {[%clk 0:02:10.8]} 19. Qc2 {[%clk 0:01:56.4]} 19...
axb4 {[%clk 0:02:08.1]} 20. axb4 {[%clk 0:01:56.6]} 20... Rfa8 {[%clk
0:02:09.7]} 21. Qb2 {[%clk 0:01:53.9]} 21... Ra6 {[%clk 0:02:00.8]} 22. Rxa6
{[%clk 0:01:44.6]} 22... Rxa6 {[%clk 0:02:02.7]} 23. Ra1 {[%clk 0:01:45.7]}
23... Qa7 {[%clk 0:02:02]} 24. Rxa6 {[%clk 0:01:46.3]} 24... Qxa6 {[%clk
0:02:00.7]} 25. f4 {[%clk 0:01:43.8]} 25... Bf8 {[%clk 0:01:50.1]} 26. Qa2
{[%clk 0:01:42]} 26... Qxa2 {[%clk 0:01:50]} 27. Nxa2 {[%clk 0:01:42.5]} 27...
Be7 {[%clk 0:01:48.8]} 28. Nc1 {[%clk 0:01:25.6]} 28... Kf8 {[%clk 0:01:39]} 29.
Nb3 {[%clk 0:01:24.9]} 29... Ke8 {[%clk 0:01:37.2]} 30. Na5 {[%clk 0:01:16.7]}
30... Kd7 {[%clk 0:01:39.1]} 31. Nb7 {[%clk 0:01:16.1]} 31... f5 {[%clk
0:01:31.8]} 32. Nd6 {[%clk 0:00:59.6]} 32... g5 {[%clk 0:01:26.2]} 33. h3 {[%clk
0:00:45.4]} 33... gxf4 {[%clk 0:01:13.9]} 34. gxf4 {[%clk 0:00:45.8]} 34... Bh4
{[%clk 0:01:13.1]} 35. Nf7 {[%clk 0:00:21.6]} 35... Be1 {[%clk 0:01:07.4]} 36.
Ng5 {[%clk 0:00:21.5]} 36... h5 {[%clk 0:00:58.1]} 37. Nh7 {[%clk 0:00:15]}
37... Bxb4 {[%clk 0:00:55.7]} 38. Nf6+ {[%clk 0:00:15.9]} 38... Ke7 {[%clk
0:00:56.8]} 39. Nxh5 {[%clk 0:00:17.4]} 39... Bc3 {[%clk 0:00:57.8]} 40. Ng3
{[%clk 0:00:16.9]} 40... Bxd4+ {[%clk 0:00:56.1]} 41. Kg2 {[%clk 0:00:18.1]}
41... b4 {[%clk 0:00:55.9]} 42. Nf1 {[%clk 0:00:17.8]} 42... Bc3 {[%clk
0:00:51.9]} 43. Ne3 {[%clk 0:00:15.2]} 43... b3 {[%clk 0:00:53.1]} 44. Nd1
{[%clk 0:00:15.8]} 44... Bd4 {[%clk 0:00:53.4]} 0-1

[Event "*** Titled Tuesday 3|2 Blitz"]
[Site "Chess.com"]
[Date "2015.08.04"]
[Round "2"]
[White "Chesseducation4u"]
[Black "wonderfultime"]
[Result "1-0"]
[WhiteElo "2474"]
[BlackElo "2635"]
[TimeControl "180+2"]
[EndTime "11:50:42 PDT"]
[Termination "Chesseducation4u won by resignation"]

1. Nf3 {[%clk 0:03:01.9]} 1... d5 {[%clk 0:02:57.5]} 2. g3 {[%clk 0:03:02.7]}
2... Nf6 {[%clk 0:02:58.5]} 3. Bg2 {[%clk 0:03:03.5]} 3... Bf5 {[%clk
0:02:57.3]} 4. c4 {[%clk 0:03:03.6]} 4... c6 {[%clk 0:02:54.4]} 5. cxd5 {[%clk
0:03:04.1]} 5... cxd5 {[%clk 0:02:55.3]} 6. Qb3 {[%clk 0:03:05.6]} 6... Bc8
{[%clk 0:02:50.8]} 7. Nc3 {[%clk 0:02:50.6]} 7... Nc6 {[%clk 0:02:52]} 8. O-O
{[%clk 0:02:46.1]} 8... e6 {[%clk 0:02:52.2]} 9. d3 {[%clk 0:02:44.7]} 9... Be7
{[%clk 0:02:47.4]} 10. Bf4 {[%clk 0:02:36.8]} 10... O-O {[%clk 0:02:47]} 11.
Rac1 {[%clk 0:02:33]} 11... Nd7 {[%clk 0:01:56.1]} 12. Be3 {[%clk 0:01:56.2]}
12... a6 {[%clk 0:01:26.1]} 13. Na4 {[%clk 0:01:32.7]} 13... Re8 {[%clk
0:01:04.1]} 14. Nb6 {[%clk 0:01:16.8]} 14... Nxb6 {[%clk 0:01:04.5]} 15. Bxb6
{[%clk 0:01:15.4]} 15... Qd6 {[%clk 0:01:04.3]} 16. e4 {[%clk 0:00:59.3]} 16...
Bf6 {[%clk 0:00:52.8]} 17. Rfe1 {[%clk 0:00:54]} 17... dxe4 {[%clk 0:00:34.4]}
18. dxe4 {[%clk 0:00:52.3]} 18... e5 {[%clk 0:00:35.9]} 19. Bc5 {[%clk 0:00:35]}
19... Qc7 {[%clk 0:00:37.2]} 20. Bb6 {[%clk 0:00:35.5]} 20... Qb8 {[%clk
0:00:38.5]} 21. Bf1 {[%clk 0:00:34.6]} 21... Be6 {[%clk 0:00:37.8]} 22. Bc4
{[%clk 0:00:34.7]} 22... a5 {[%clk 0:00:35.9]} 23. Bxe6 {[%clk 0:00:34.2]} 23...
Rxe6 {[%clk 0:00:37.8]} 24. Qb5 {[%clk 0:00:30.8]} 24... h6 {[%clk 0:00:31.6]}
25. Rcd1 {[%clk 0:00:30]} 25... a4 {[%clk 0:00:31.6]} 26. Rd5 {[%clk 0:00:29.2]}
26... a3 {[%clk 0:00:26.6]} 27. b3 {[%clk 0:00:29.3]} 27... Ne7 {[%clk
0:00:25.4]} 28. Rd7 {[%clk 0:00:26.8]} 28... Qc8 {[%clk 0:00:26.6]} 29. Rd8+
{[%clk 0:00:26.5]} 29... Qxd8 {[%clk 0:00:27.5]} 30. Bxd8 {[%clk 0:00:28.4]}
30... Rxd8 {[%clk 0:00:29.4]} 31. Qa5 {[%clk 0:00:23.3]} 31... Rd3 {[%clk
0:00:26.7]} 32. Kg2 {[%clk 0:00:21.4]} 32... Ra6 {[%clk 0:00:25.8]} 33. Qb5
{[%clk 0:00:21.3]} 33... Rc6 {[%clk 0:00:18.9]} 34. Qxd3 {[%clk 0:00:20.5]}
34... Kh7 {[%clk 0:00:16.4]} 35. Qb5 {[%clk 0:00:21.2]} 35... Rc2 {[%clk
0:00:16.6]} 36. Re2 {[%clk 0:00:22.3]} 36... Rc3 {[%clk 0:00:18.1]} 37. Qxb7
{[%clk 0:00:22.4]} 37... Nc6 {[%clk 0:00:19.6]} 38. Qb6 {[%clk 0:00:21.7]} 38...
h5 {[%clk 0:00:16.8]} 39. h4 {[%clk 0:00:20.9]} 39... Rc1 {[%clk 0:00:14.4]} 40.
Qa6 {[%clk 0:00:20.7]} 40... Be7 {[%clk 0:00:11.8]} 41. Qb7 {[%clk 0:00:18.4]}
1-0